Cogmind - Beta 13 @@@ ROGUE MODE // 2024.06.02 @ 14:54:11 Player: lurie Result: Destroyed by Y-45 Defender with Beam Rifle Performance ------------- Evolutions (0) 0 Regions Visited (3) 600 Robots Destroyed (33) 165 Value Destroyed (601) 601 Prototype IDs (2) 40 Alien Tech Used (0) 0 Bonus (4) 4 TOTAL SCORE: 1410 Bonus ------- Follower Combat Kills 14 Friendly Fire -10 Cogmind --------- Core Integrity 0/250 Matter 245/300 Energy 100/100 System Corruption 1% Temperature Cool (15) Movement Core (700) Ox13 Location -10/Subcaves Parts ------- > --- POWER (1) -------- (None) > --- PROPULSION (2) --- (None) > --- UTILITY (2) ------ High-capacity Storage Unit > --- WEAPON (2) ------- (None) > --- INVENTORY (20) --- Light Treads Light Treads Armored Wheel Small Storage Unit Heavy EM Pulse Gun Small Laser Beamcaster Mining Laser Mace Makeshift Spear Peak State ------------ > --- POWER ------------ Ion Engine > --- PROPULSION ------- Light Treads Light Treads > --- UTILITY ---------- High-capacity Storage Unit Structural Scanner > --- WEAPON ----------- Heavy EM Pulse Gun Assault Rifle > --- INVENTORY -------- Light Ion Engine Light Treads Light Treads Armored Wheel Small Storage Unit Small Laser Grenade Launcher Mace [Rating: 9] Favorites ----------- Power Ion Engine Engine Ion Engine Propulsion Light Treads Treads Light Treads Utility Structural Scanner Device Structural Scanner Storage High-capacity Storage Unit Weapon Grenade Launcher Energy Gun Heavy EM Pulse Gun Ballistic Gun Assault Rifle Launcher Grenade Launcher Build | -11 -10 -10 -10 ------- Run | Yrd Mat Min Sub Slots Evolved . | . . . . Power . | . . . . Propulsion . | . . . . Utility . | . . . . Weapon . | . . . . Parts Attached 17 | 6 7 3 1 Power 2 | 1 . 1 . Engine 2 | 1 . 1 . Core . | . . . . Reactor . | . . . . Propulsion 4 | 2 2 . . Treads 4 | 2 2 . . Leg . | . . . . Wheel . | . . . . Hover . | . . . . Flight . | . . . . Utility 3 | 1 2 . . Device 1 | . 1 . . Storage 2 | 1 1 . . Processor . | . . . . Hackware . | . . . . Protection . | . . . . Artifact . | . . . . Weapon 8 | 2 3 2 1 Energy Gun 3 | 1 2 . . Energy Cannon . | . . . . Ballistic Gun 2 | 1 . 1 . Ballistic Cannon . | . . . . Launcher 3 | . 1 1 1 Special Weapon . | . . . . Impact Weapon . | . . . . Slashing Weapon . | . . . . Piercing Weapon . | . . . . Special Melee Weapon . | . . . . Unidentified Prototypes . | . . . . Parts Lost 9 | . 1 1 7 Power 2 | . . 1 1 Propulsion 3 | . 1 . 2 Utility 1 | . . . 1 Weapon 3 | . . . 3 Highest Loss Streak 5 | . 1 1 5 To Critical Strikes 1 | . . . 1 Average Slot Usage (%) 95 | . 95 96 92 Engine 12 | . 14 10 13 Treads 26 | . 26 28 23 Device 12 | . 10 14 13 Storage 14 | . 14 14 14 Energy Gun 6 | . 14 . . Ballistic Gun 9 | . 10 5 13 Launcher 12 | . 3 22 13 Naked Turns . | . . . . Heaviest Build 52 | 13 52 52 49 Greatest Support 40 | 40 40 40 40 Greatest Overweight (x) 14 | . 1 1 14 Average Overweight (x) . | . . 1 1 Largest Inventory Capacity 20 | 8 20 20 20 Average Capacity 16 | 7 12 20 20 Most Carried 12 | 2 9 12 11 Average Carried 8 | 1 7 10 10 Final Capacity 20 | 8 20 20 20 Final Carried 11 | 2 9 11 10 Class Distribution -------------------- 100% | Mutant Dominant Class ---------------- Mutant | -10/Materials Mutant | -10/Mines Mutant | -10/Subcaves Resources | -11 -10 -10 -10 ----------- Run | Yrd Mat Min Sub Matter Collected 719 | 269 208 147 95 Remotely . | . . . . Salvage Created 1001 | 129 618 168 86 Parts 67 | 6 40 17 4 Haulers Intercepted 2 | . 2 . . Recyclers Shooed . | . . . . Parts Field Recycled . | . . . . Retrieved Matter . | . . . . Parts Self-Destructed . | . . . . Prevented . | . . . . Kills | -11 -10 -10 -10 ------- Run | Yrd Mat Min Sub Combat Hostiles Destroyed 19 | . 9 6 4 Guns 8 | . 6 1 1 AOE 11 | . 3 5 3 Classes Destroyed 9 | 2 6 . 1 Worker 3 | . 3 . . Builder 1 | . 1 . . Tunneler 3 | 2 . 1 . Hauler 2 | . 2 . . Recycler 4 | 1 2 1 . Watcher 1 | . 1 . . Swarmer 7 | . 3 4 . Grunt 8 | . 6 2 . Subdweller 4 | . . . 4 Best Kill Streak 8 | 3 8 4 2 Combat Bots Only 5 | . 5 3 2 Max Kills in Single Turn 3 | 1 3 3 2 Gunslinging . | . . . . Exploded 3 | . 3 2 2 Melee . | . . . . Uniques/NPCs Destroyed . | . . . . Combat | -11 -10 -10 -10 -------- Run | Yrd Mat Min Sub Hostile Shots Fired 125 | . 66 13 46 Missed 40 | . 21 6 13 Damage Taken 1185 | . 480 65 640 Core 262 | . 82 19 161 Absorbed by Shields . | . . . . Core Remaining (%) 100 | 100 . . . Volleys Fired 63 | 3 39 7 14 Largest 2 | 2 2 2 2 Hottest 65 | 60 65 60 50 Shots Fired 117 | 6 74 12 25 Gun 88 | 6 70 1 11 Cannon . | . . . . Launcher 29 | . 4 11 14 Special . | . . . . Kinetic 50 | 3 35 1 11 Thermal 3 | 3 . . . Explosive 29 | . 4 11 14 Electromagnetic 35 | . 35 . . Robot Hit Streak 8 | 2 8 2 7 Robot Miss Streak 8 | 1 8 . 1 Penetration Max . | . . . . Secondary Targets 3 | . 3 . . Max Gunslinging Chain 1 | . 1 . . Shots Hit Robots 51 | 4 35 1 11 Core Hits 48 | 4 22 13 9 Critical Kills . | . . . . Critical Parts Destroyed . | . . . . Critical Strikes 1 | . 1 . . Corrupt 1 | . 1 . . Melee Attacks . | . . . . Impact . | . . . . Slashing . | . . . . Piercing . | . . . . Sneak Attacks . | . . . . Combat Hostiles . | . . . . Follow-up Attacks . | . . . . Damage Inflicted 1703 | 42 756 404 501 Guns 651 | 42 557 13 39 Cannons . | . . . . Explosions 1008 | . 186 361 461 Melee . | . . . . Ramming 44 | . 13 30 1 Kinetic 303 | 10 241 13 39 Thermal 32 | 32 . . . Explosive 1008 | . 186 361 461 Electromagnetic 316 | . 316 . . Impact . | . . . . Slashing . | . . . . Piercing . | . . . . Highest Corruption 1 | . 1 1 1 Average Corruption 1 | . 1 1 1 Corruption Purged . | . . . . Corruption Blocked . | . . . . Effects 19 | . 1 11 7 Message Errors 2 | . 1 1 . Matter Fused 5 | . . 4 1 Heat Flow Errors 2 | . . 1 1 Energy Discharges 3 | . . 3 . Data Loss (minor) 3 | . . 2 1 Data Loss (major) 3 | . . . 3 Misfires 1 | . . . 1 Overload Shots . | . . . . Overflow Damage . | . . . . Projectiles . | . . . . Explosions . | . . . . Melee . | . . . . Knockbacks 1 | . . . 1 Impact 1 | . . . 1 Kinetic . | . . . . Secondary . | . . . . Self-Inflicted Damage 82 | . 34 . 48 Shots 6 | . 2 . 4 Rammed 8 | . 2 5 1 Targets Rammed 8 | . 2 5 1 Kicked . | . . . . Crushed . | . . . . Highest Temperature 183 | . 183 121 142 Average Temperature 71 | . 71 64 83 Received Heat Transfer 300 | . 156 . 144 Siege Activations . | . . . . Robots Corrupted . | . . . . Combat Hostiles . | . . . . Parts Fried 2 | . 2 . . Impact Corruptions . | . . . . Robots Melted . | . . . . Combat Hostiles . | . . . . Parts Melted . | . . . . Heat Transferred 75 | 75 . . . Parts Sabotaged . | . . . . Parts Stolen . | . . . . Parts Stripped . | . . . . Power Chain Reactions . | . . . . Alert | -11 -10 -10 -10 ------- Run | Yrd Mat Min Sub Peak Influence 173 | 15 173 151 . Initial 15 | . 9 15 . Average 35 | 3 35 36 . Maximum Alert Level . | . . . . Low Security (%) 100 | 100 100 100 . Level 1 . | . . . . Level 2 . | . . . . Level 3 . | . . . . Level 4 . | . . . . Level 5 . | . . . . High Security . | . . . . Max Security . | . . . . Squads Dispatched 2 | . 2 . . Investigation 2 | . 2 . . Extermination . | . . . . Reinforcement . | . . . . Assault . | . . . . Garrison . | . . . . Intercept . | . . . . Searches Triggered . | . . . . Construction Impeded . | . . . . Haulers Reinforced . | . . . . Active Scanning Responses . | . . . . Cargo Convoy Interrupts . | . . . . Stealth | -11 -10 -10 -10 --------- Run | Yrd Mat Min Sub Distress Signals . | . . . . Communications Jammed . | . . . . Distress Signals . | . . . . Times Spotted 26 | . 13 7 6 Peak Tracking Total 5 | . 5 3 2 Tactical Retreats . | . . . . Traps | -11 -10 -10 -10 ------- Run | Yrd Mat Min Sub Traps Triggered . | . . . . Indirectly . | . . . . Trap Hack Attempts . | . . . . Triggered . | . . . . Disarmed . | . . . . Reprogrammed . | . . . . Reused . | . . . . Traps Extracted . | . . . . Installed . | . . . . Triggered . | . . . . Machines | -11 -10 -10 -10 ---------- Run | Yrd Mat Min Sub Machines Disabled . | . . . . Max in Single Turn . | . . . . Machines Repaired . | . . . . Machines Dismantled . | . . . . Machines Sabotaged . | . . . . Overloaded Fab Kills . | . . . . Hacking | -11 -10 -10 -10 --------- Run | Yrd Mat Min Sub Machines Accessed 3 | . 3 . . Terminals 3 | . 3 . . Fabricators . | . . . . Repair Stations . | . . . . Recycling Units . | . . . . Scanalyzers . | . . . . Garrison Access . | . . . . Total Hacks 12 | . 12 . . Successful 7 | . 7 . . Failed 5 | . 5 . . Catastrophic 2 | . 2 . . Database Lockouts . | . . . . Manual 10 | . 10 . . Terminals 12 | . 12 . . Fabricators . | . . . . Repair Stations . | . . . . Recycling Units . | . . . . Scanalyzers . | . . . . Garrison Access . | . . . . Terminal Hacks 4 | . 4 . . Robot Analysis 2 | . 2 . . Prototype ID Bank 1 | . 1 . . Terminal Index 1 | . 1 . . Fabricator Hacks . | . . . . Repair Station Hacks . | . . . . Recycling Unit Hacks . | . . . . Scanalyzer . | . . . . Garrison Access Hacks . | . . . . Unauthorized Hacks 3 | . 3 . . Terminals 3 | . 3 . . Botnet 2 | . 2 . . Operators 1 | . 1 . . Fabricators . | . . . . Repair Stations . | . . . . Recycling Units . | . . . . Scanalyzers . | . . . . Garrison Access . | . . . . Data Cores Recovered . | . . . . Used . | . . . . Hacking Detections 3 | . 3 . . Full Trace Events 2 | . 2 . . Feedback Events 1 | . 1 . . Corruption 1 | . 1 . . Feedback Blocked . | . . . . Robot Schematics Acquired . | . . . . Robots Built . | . . . . Authchips . | . . . . Time . | . . . . Total Robot Build Rating . | . . . . Part Schematics Acquired . | . . . . Parts Built . | . . . . Authchips . | . . . . Time . | . . . . Total Part Build Rating . | . . . . Parts Repaired . | . . . . Time . | . . . . Parts Recycled . | . . . . Recycled Matter . | . . . . Retrieved Matter . | . . . . Retrieved Components . | . . . . Parts Scanalyzed . | . . . . Part Schematics Acquired . | . . . . Parts Damaged . | . . . . Bothacking | -11 -10 -10 -10 ------------ Run | Yrd Mat Min Sub Used RIF Installer . | . . . . Robots Hacked . | . . . . Non-combat . | . . . . Combat . | . . . . Robot Hacks Applied . | . . . . Relay Couplers Released . | . . . . Fabnet Peak Effective % . | . . . . Robots Rewired . | . . . . Allies Hacked . | . . . . Hacks Repelled . | . . . . Allies | -11 -10 -10 -10 -------- Run | Yrd Mat Min Sub Total Allies 3 | . . 3 . Largest Group 2 | . . 2 1 Highest-Rated Group 43 | . . 43 12 Highest-Rated Ally 31 | . . 31 12 Total Orders . | . . . . Ally Attacks 13 | . . 13 . Total Damage 103 | . . 103 . Kills 2 | . . 2 . Allies Corrupted . | . . . . Allies Melted . | . . . . Intel | -11 -10 -10 -10 ------- Run | Yrd Mat Min Sub Robot Analysis Total 2 | . 2 . . Derelict Logs Recovered 1 | . . 1 . Drone Launches . | . . . . Drone Recoveries . | . . . . Exploration | -11 -10 -10 -10 ------------- Run | Yrd Mat Min Sub Turns Passed 3252 | 78 1403 1202 569 Spaces Moved 1080 | 36 362 484 198 Core 3 | 1 . . 2 Treads 1077 | 35 362 484 196 Legs . | . . . . Wheels . | . . . . Hover . | . . . . Flight . | . . . . Fastest Speed 50 | 50 160 240 240 Average Speed 225 | 156 192 240 263 Slowest Speed 750 | 160 240 240 750 Overloaded Moves . | . . . . Propulsion Burnouts . | . . . . Robots Hopped . | . . . . Cave-ins Triggered . | . . . . Exploration Rate (%) 43 | 4 57 94 19 Regions Visited 3 Branch Regions 2 Pre-discovered Areas 1 | . . . 1 Known Exits Taken . | . . . . Unknown Exits Taken 3 | 1 1 1 . Scrap Searched 1 | . . 1 . Spaces Dug . | . . . . Terrain Destroyed 117 | . 27 47 43 Melee . | . . . . Projectile . | . . . . AOE 117 | . 27 47 43 Terrain Rammed . | . . . . Walls Destroyed . | . . . . Machines Disabled . | . . . . Actions | -11 -10 -10 -10 --------- Run | Yrd Mat Min Sub Total 1765 | 49 992 505 219 Wait 584 | 3 572 4 5 Move 1077 | 35 361 483 198 Hop . | . . . . Pick Up 13 | 2 8 3 . Fast Attach 8 | 6 2 . . Attach 2 | . . 1 1 Detach . | . . . . Swap 7 | . 5 2 . Drop 3 | . 3 . . Fire 63 | 3 39 7 14 Melee . | . . . . Ram 1 | . . . 1 Kick . | . . . . Crush 7 | . 2 5 . Escape Stasis . | . . . . Rewire . | . . . . Trap . | . . . . Miscellaneous . | . . . . Route ------- -11/Scrapyard -10/Materials (discovered 3 exits: [*Mat] / [*Min] / [Sub]) -10/Mines (discovered 2 exits: [*Mat] / [*Sub]) -10/Subcaves History --------- Turn | Location | Event 2 | -11/Scrapyard | Met Revision 17 35 | -11/Scrapyard | Discovered new exit (range 15) 79 | -11/Scrapyard | Entered Materials 302 | -10/Materials | Build established: Mutant 1138 | -10/Materials | Discovered new exit (range 14) 1308 | -10/Materials | Discovered new exit (range 17) 1463 | -10/Materials | Discovered new exit (range 7) 1482 | -10/Materials | Entered Mines 1999 | -10/Mines | A weapon hastily lodged in a ceiling crevice suddenly fell to the ground 2060 | -10/Mines | Learned location of 1 exit from Materials 2279 | -10/Mines | Discovered new exit (range 5) 2397 | -10/Mines | Received a Mining Laser from a helpful Derelict 2617 | -10/Mines | Discovered new exit (range 13) 2684 | -10/Mines | Entered Subcaves 2684 | -10/Subcaves | Accompanied by 1 ally 2723 | -10/Subcaves | Core integrity fell below 50% 2960 | -10/Subcaves | Learned location of Zion (-7) 2960 | -10/Subcaves | Met a Zionite searching for "candidates" 3242 | -10/Subcaves | Core integrity fell below 20% 3253 | -10/Subcaves | Destroyed by Y-45 Defender with Beam Rifle Last Messages --------------- might I suggest a trip to Zion?" World map updated: -7/Zion. 03042_ System corrupted: Substantial component data lost. 03073_ Grenade Launcher destroyed. 03081_ Critical hit (Destroy). 03081_ Lgt. Treads destroyed. 03104_ KV-SML(R) destroyed. 03104_ QZ-M15(R) destroyed. 03118_ Acquired 28 matter. 03125_ Acquired 24 matter. 03129_ The unstable cave ceiling collapses. 03203_ System corrupted: Matter fused (-5). 03231_ Structural Scanner destroyed. 03231_ Lgt. Treads destroyed. 03236_ Slammed into G-34 Mercenary. 03236_ G-34 Mercenary knocked back. 03239_ Lgt. Ion Engine destroyed. 03241_ Assault Rifle destroyed. 03245_ Grenade Launcher destroyed. Map ----- +----------------------------------------------------+ | ?????????????""""" # # & | | ?????????##"?"" "" &* | | ?????????## " & [ | | ????????? " # & | | ?????????? ### ### ### #### | | ?????????? ?? ### ## #### ##### | | ?????????????? ## ##### ####### ## # | | ????????????? " ###########?########## | | ???????????? " ########???########## | | ???????????# ### ###?????????????????? | | ??????????### ######## ##?????????????????? | | ??????????### ######## ##?????????????????? | | ??????????## ####### ##?????????????????? | | ?????????? ##### ###?????????????????? | | ??????????? ###?????????????????? | | ???????????????## ##?????????????????? | | ???????????????## ##?????????????????? | | ???????????????## ##?????????????????? | | ???????????????### ###?????????????????? | | ???????????????###### #####?????????????????? | | ????????????????###### ######??????????????????? | | ???????????????????### ### ????????????????????? | | ???????????????????### ###??????????????????????? | | ???????????????????## ###?? #??????????????????? | | ???????????????????### g ## #??????????????????? | | ???????????????????### @ #???????????????????? | | ????????????????????### #???????????????????? | | ????????????????????### ##???????????????????? | | ????????????????????? # #????????????????????? | | ????????????????????? [ ????????????????????? | | ?????????????????????% Y ???????????????????? | | ???????????????????? # # ??????????????????? | | ???????????????????##### ?????????????????? | | ?????????????????????### #????????????????? | | ???????????????????????# ###????????????????? | | ???????????????????????### ###??????????????????? | | ????????????????????????## ###??????????????????? | | ?????????????????????????? ????????????????????? | | ?????????????????????????? ????????????????????? | | ?????????????????????????? ????????????????????? | | ?????????????????????????? ?????????????????????? | | ?????????????????????????????????????????????????? | | ?????????????????????????????????????????????????? | | ?????????????????????????????????????????????????? | | ?????????????????????????????????????????????????? | | ?????????????????????????????????????????????????? | | ?????????????????????????????????????????????????? | | ?????????????????????????????????????????????????? | | ?????????????????????????????????????????????????? | | ?????????????????????????????????????????????????? | +----------------------------------------------------+ Best States ------------- Heat Dissipation 25 Energy Generation 10 Energy Capacity 250 Matter Stores 300 Matter Capacity 300 Sight Range 16 Terrain Scan Density 10 Evasion (%) 40 Recoil Reduction 2 Item Schematics ----------------- None Robot Schematics ------------------ None Fabricated ------------ Nothing Alien Tech Used ----------------- None Achievements -------------- None Challenges ------------ None Game ------ Seed MultinovaPhasingTriangulator Manual? 0 Play Time 00:14:27 Cumulative 122.6 hours Start 2024.06.02 @ 14:41:32 End 2024.06.02 @ 14:54:11 Sessions 1 Manual Loads 0 Difficulty Rogue Special Mode None Game No. 62 Rogue 62 Adventurer 0 Explorer 0 Win Type - Total 0 Types 0/0/0/0/0/0/0/0/0 Lore% 52 Gallery% 58 Achievement% 45 Wizard Run 0 Options --------- Layout 2 ASCII 0 Keyboard 0 Movement Mouse Keybinds 0 Fullscreen 1 Font 32/SmallcapsGlow Map View 50x44 Zoom Use 0% Tactical HUD 1 Map Filters NONE Filters NONE Steam 1 RUN: d061df9b-dad7-4975-9edd-4ce9aa16707f